bitfinex-derivatives/quotes_BTCF0:USTF0_20250919
["timestamp","ask_amount","ask_price","bid_price","bid_amount"]
[1758242903810,1.23121847,117470.0,117460.0,0.00012807]
[1758242904204,2.00893847,117470.0,117460.0,0.00012807]
[1758242905010,1.23121847,117470.0,117460.0,0.00012807]
[1758242905210,2.00897847,117470.0,117460.0,0.00012807]
[1758242905904,1.23121847,117470.0,117460.0,0.00012807]
[1758242906111,1.56620361,117470.0,117460.0,0.00012807]
[1758242906308,2.00901847,117470.0,117460.0,0.00012807]
[1758242909317,1.98491314,117470.0,117460.0,0.00012807]
[1758242910419,1.20711314,117470.0,117460.0,0.00012807]
[1758242910718,2.05303435,117470.0,117460.0,0.00012807]
[1758242911224,2.07708217,117470.0,117460.0,0.00012807]
[1758242911412,2.05303435,117470.0,117460.0,0.00012807]
[1758242919023,1.27515435,117470.0,117460.0,0.00012807]
[1758242919220,2.05227435,117470.0,117460.0,0.00012807]
[1758242919524,1.02515435,117470.0,117460.0,0.00012807]
[1758242920218,1.80219435,117470.0,117460.0,0.00012807]
[1758242921421,1.02515435,117470.0,117460.0,0.00012807]
[1758242921630,1.80207435,117470.0,117460.0,0.00012807]
[1758242935233,2.02348178,117470.0,117450.0,0.0002]
[1758242935437,1.06089229,117460.0,117450.0,0.0002]
[1758242935637,1.10260952,117460.0,117450.0,0.0001]
[1758242937035,0.03388,117450.0,117440.0,0.0001]
[1758242937241,0.0281,117440.0,117430.0,0.0001]
[1758242937535,0.0281,117440.0,117420.0,0.0001]
[1758242937536,0.0281,117430.0,117420.0,0.0001]
[1758242937727,0.8043,117430.0,117420.0,0.84]
[1758242937932,1.24711486,117430.0,117420.0,0.84]
[1758242938530,1.02574743,117430.0,117420.0,0.8764]
[1758242938832,1.01883743,117430.0,117420.0,0.8784]
[1758242939340,0.24259743,117430.0,117420.0,0.8784]
[1758242939535,1.24707486,117430.0,117420.0,0.842]
[1758242939844,0.47091486,117430.0,117420.0,0.672]
[1758242940050,0.47091486,117430.0,117420.0,0.69508]
[1758242940234,1.03414091,117430.0,117420.0,0.69508]
[1758242940435,1.25554834,117430.0,117420.0,0.69308]
[1758242940732,0.03665348,117430.0,117420.0,0.69408]
[1758242940938,0.79731,117430.0,117420.0,1.66960743]
[1758242941137,1.01871743,117430.0,117420.0,1.66960743]
[1758242941342,1.01871743,117430.0,117420.0,1.4482]
[1758242941643,1.02737376,117430.0,117420.0,1.4482]
[1758242941840,1.03428376,117430.0,117420.0,1.4482]
[1758242942447,1.02562743,117430.0,117420.0,1.4482]
[1758242942645,1.02562743,117430.0,117420.0,1.0874]
[1758242943348,1.03397914,117430.0,117420.0,1.0874]
[1758242943550,1.02562743,117430.0,117420.0,1.0874]
[1758242943843,0.24950743,117430.0,117420.0,1.0874]
[1758242944048,1.24715486,117430.0,117420.0,0.82408]
[1758242944649,1.02574743,117430.0,117420.0,0.521]
[1758242944848,1.24715486,117430.0,117420.0,0.521]
[1758242945851,1.24715486,117430.0,117420.0,0.54408]
[1758242946850,1.02574743,117430.0,117420.0,0.54408]
[1758242947051,1.01863743,117430.0,117420.0,0.5574]
[1758242947244,0.02119,117430.0,117420.0,0.5574]
[1758242947444,1.01847743,117430.0,117420.0,0.5574]
[1758242947853,0.24259743,117430.0,117420.0,0.5574]
[1758242948044,0.79739,117430.0,117420.0,1.2182]
[1758242948351,1.01879743,117430.0,117420.0,1.2182]
[1758242948550,0.24259743,117430.0,117420.0,1.4682]
[1758242948752,1.01879743,117430.0,117420.0,1.4682]
[1758242950947,1.02570743,117430.0,117420.0,1.1074]
[1758242953858,1.46923378,117430.0,117420.0,1.1074]
[1758242955763,1.47023378,117430.0,117420.0,1.1074]
[1758242956063,1.47023378,117430.0,117420.0,1.1064]
[1758242959755,1.47023378,117430.0,117420.0,0.8864]
[1758242960457,1.46332378,117430.0,117420.0,0.8864]
[1758242960757,0.02219,117430.0,117420.0,1.2472]
[1758242960961,1.13013689,117430.0,117420.0,1.57966689]
[1758242961364,1.13013689,117430.0,117420.0,1.2472]
[1758242971870,1.13013689,117430.0,117420.0,0.8864]
[1758242972072,1.46260378,117430.0,117420.0,0.8864]
[1758242973466,0.77636,117430.0,117420.0,2.13213378]
[1758242974171,0.77636,117430.0,117420.0,2.21725528]
[1758242975374,0.77536,117430.0,117420.0,2.21825528]
[1758242976476,0.77536,117430.0,117420.0,2.21725528]
[1758242976673,1.81086177,117440.0,117430.0,0.0369]
[1758242976868,2.58608177,117440.0,117430.0,1.59016689]
[1758242978476,2.58608177,117440.0,117430.0,1.59116689]
[1758242983385,2.569,117440.0,117430.0,2.27873271]
[1758242985184,3.15146689,117440.0,117430.0,1.2587]
[1758242985386,3.51404106,117440.0,117430.0,1.24483]
[1758242985585,3.53602106,117440.0,117430.0,1.24483]
[1758242985787,3.53602106,117440.0,117430.0,0.58403]
[1758242988391,3.53602106,117440.0,117430.0,0.561]
[1758242988597,4.22928795,117440.0,117430.0,0.561]
[1758242989097,3.89682106,117440.0,117430.0,0.56]
[1758242989593,3.89782106,117440.0,117430.0,0.56]
[1758242993695,3.23288728,117440.0,117430.0,0.58303]
[1758242993894,3.89782106,117440.0,117430.0,0.07303]
[1758242994996,3.89782106,117440.0,117430.0,0.02303]
[1758242997089,3.89782106,117440.0,117420.0,0.01352]
[1758242997294,0.35473689,117430.0,117420.0,0.91629]
[1758242997499,0.35473689,117430.0,117420.0,0.91609]
[1758242998895,0.35473689,117430.0,117420.0,0.91709]
[1758242999095,1.12997689,117430.0,117420.0,0.91709]
[1758242999801,1.13835729,117430.0,117420.0,0.91709]
[1758243000601,0.36311729,117430.0,117420.0,0.91709]
[1758243000803,1.13835729,117430.0,117420.0,0.91709]
[1758243000996,0.02227,117430.0,117420.0,1.49955689]
[1758243001197,1.83346728,117440.0,117430.0,0.03634]
[1758243001406,3.27354106,117440.0,117430.0,0.44634]
[1758243001802,2.60860728,117440.0,117430.0,0.44634]
[1758243002008,3.27354106,117440.0,117430.0,0.44634]
[1758243002504,2.60860728,117440.0,117430.0,0.44634]
[1758243002704,3.27354106,117440.0,117430.0,0.44634]
[1758243002904,3.27454106,117440.0,117430.0,0.44634]
[1758243003902,3.28305578,117440.0,117430.0,0.44634]
[1758243004213,3.65076578,117440.0,117430.0,0.44634]
[1758243013911,3.42904894,117440.0,117430.0,0.44634]
[1758243016913,3.42904894,117440.0,117430.0,0.43277]
[1758243017212,3.42904894,117440.0,117420.0,0.37432]
[1758243017413,0.22160847,117430.0,117420.0,1.30709]
[1758243017614,0.22160847,117430.0,117420.0,1.30689]
[1758243019013,0.22160847,117430.0,117420.0,1.30789]
[1758243019214,0.24387847,117430.0,117420.0,0.94709]
[1758243020218,0.25094847,117430.0,117420.0,0.94709]
[1758243020416,0.61174847,117430.0,117420.0,0.64709]
[1758243020619,0.61174847,117430.0,117420.0,0.34377]
[1758243021409,0.61174847,117430.0,117420.0,0.34277]
[1758243022712,0.61274847,117430.0,117420.0,0.34277]
[1758243027020,0.83435694,117430.0,117420.0,0.34277]
[1758243029221,1.16638,117430.0,117420.0,0.35644]
[1758243029418,1.38091847,117430.0,117420.0,0.35644]
[1758243029621,0.24487847,117430.0,117420.0,0.35644]
[1758243029921,1.02011847,117430.0,117420.0,0.35644]
[1758243030120,0.24487847,117430.0,117420.0,0.35644]
[1758243030322,1.02011847,117430.0,117420.0,0.35644]
[1758243038635,2.81419847,117430.0,117420.0,0.03644]
[1758243042028,2.81415847,117430.0,117420.0,0.03644]
[1758243049728,1.81735,117430.0,117420.0,0.52724]
[1758243049935,2.81415847,117430.0,117420.0,0.76884847]
[1758243050237,2.81415847,117430.0,117420.0,0.54724]
[1758243052730,2.03895847,117430.0,117420.0,0.61884847]
[1758243052935,2.81411847,117430.0,117420.0,1.10884847]
[1758243053640,2.81411847,117430.0,117420.0,0.89580074]
[1758243059339,2.81411847,117430.0,117420.0,0.88724]
[1758243060245,1.79508,117430.0,117420.0,1.95392386]
[1758243060447,2.5702,117430.0,117420.0,1.51070692]
[1758243060635,2.5702,117430.0,117420.0,1.95392386]
[1758243061444,2.5702,117430.0,117420.0,1.91748386]
[1758243061748,2.5702,117430.0,117420.0,1.91848386]
[1758243062849,2.5692,117430.0,117420.0,1.91848386]
[1758243064050,2.5692,117430.0,117420.0,1.47526692]
[1758243064250,2.5692,117430.0,117420.0,1.83336026]
[1758243067156,2.5692,117430.0,117420.0,1.94008317]
[1758243067650,2.5692,117430.0,117420.0,2.02520687]
[1758243068254,2.5692,117430.0,117420.0,1.91848396]
[1758243069355,1.79408,117430.0,117420.0,1.91848396]
[1758243069654,1.79408,117430.0,117420.0,2.02520687]
[1758243069655,2.56912,117430.0,117420.0,2.02520687]
[1758243071356,2.56908,117430.0,117420.0,2.02520687]
[1758243073156,2.56908,117430.0,117420.0,1.91848396]
[1758243073656,2.56908,117430.0,117420.0,2.02520687]
[1758243073857,2.56908,117430.0,117420.0,2.57878169]
[1758243074356,2.56908,117430.0,117420.0,2.47205878]
[1758243075356,2.56908,117430.0,117420.0,2.13979486]
[1758243075554,1.79408,117430.0,117420.0,2.47205878]
[1758243075759,2.56904,117430.0,117420.0,2.47205878]
[1758243077662,1.79408,117430.0,117420.0,2.22205878]
[1758243077863,2.569,117430.0,117420.0,2.22205878]
[1758243081469,2.569,117430.0,117420.0,2.3286124]
[1758243081958,0.77492,117430.0,117420.0,2.3416624]
[1758243083470,0.77492,117430.0,117420.0,2.23510878]
[1758243086570,0.77492,117430.0,117420.0,1.87430878]
[1758243086871,0.77492,117430.0,117420.0,2.59590878]
[1758243088972,0.01751728,117440.0,117430.0,0.1207265]
[1758243089170,0.79221728,117440.0,117430.0,1.96605434]
[1758243089668,0.79221728,117440.0,117430.0,2.07271887]
[1758243089868,0.0001,117450.0,117440.0,0.0851092]
[1758243090074,0.7748,117450.0,117440.0,1.98093784]
[1758243090269,2.12612392,117460.0,117440.0,1.98093784]
[1758243090472,2.14838392,117460.0,117450.0,0.72867392]
[1758243090669,3.17308392,117460.0,117450.0,1.65867392]
[1758243090870,2.92308392,117460.0,117450.0,1.65867392]
[1758243092074,2.59082,117460.0,117450.0,1.65867392]
[1758243092273,2.92308392,117460.0,117450.0,1.65867392]
[1758243092473,2.92408392,117460.0,117450.0,1.65867392]
[1758243093873,2.92408392,117460.0,117450.0,1.72592337]
[1758243094180,2.92408392,117460.0,117450.0,1.73443717]
[1758243094880,2.92408392,117460.0,117450.0,1.39365945]
[1758243095080,2.92408392,117460.0,117450.0,1.72592337]
[1758243106290,2.92408392,117460.0,117450.0,1.39365945]
[1758243106585,2.92408392,117460.0,117450.0,1.72592337]
[1758243113486,2.59182,117460.0,117450.0,1.72592337]
[1758243113885,2.92408392,117460.0,117450.0,1.72592337]
[1758243114187,2.14928392,117460.0,117450.0,1.72592337]
[1758243114391,1.81702,117460.0,117450.0,1.72592337]
[1758243114591,2.92384392,117460.0,117450.0,1.72592337]
[1758243115094,1.79476,117460.0,117450.0,2.41898729]
[1758243115290,2.56932,117460.0,117450.0,2.52565182]
[1758243115888,2.56932,117460.0,117450.0,2.1933879]
[1758243116088,2.56932,117460.0,117450.0,2.52565182]
[1758243116889,2.56932,117460.0,117450.0,4.02565182]
[1758243117592,2.56932,117460.0,117450.0,4.02665182]
[1758243118086,2.56832,117460.0,117450.0,4.02665182]
[1758243119294,1.79376,117460.0,117450.0,4.02665182]
[1758243119498,1.79376,117460.0,117450.0,4.11175382]
[1758243119499,2.56828,117460.0,117450.0,4.11175382]
[1758243120290,1.79376,117460.0,117450.0,4.11175382]
[1758243120595,2.56824,117460.0,117450.0,4.11175382]
[1758243121995,2.56824,117460.0,117450.0,4.02665182]
[1758243123599,2.56824,117460.0,117450.0,4.11175382]
[1758243125996,2.56824,117460.0,117450.0,4.00508929]
[1758243126590,1.79376,117460.0,117450.0,4.00508929]
[1758243126785,2.5682,117460.0,117450.0,4.00508929]
[1758243128908,2.5682,117460.0,117450.0,4.11175382]
[1758243131702,2.5682,117460.0,117450.0,4.00508929]
[1758243132499,2.5682,117460.0,117450.0,3.91998729]
[1758243132704,2.5682,117460.0,117450.0,4.00508919]
[1758243133900,2.5682,117460.0,117450.0,3.56199357]
[1758243134404,2.5682,117460.0,117450.0,3.34056135]
[1758243134603,0.77444,117460.0,117450.0,3.78342579]
[1758243135307,0.77444,117460.0,117450.0,3.56199357]
[1758243138198,0.77444,117460.0,117450.0,3.78342579]
[1758243142011,0.77444,117460.0,117450.0,3.89009032]
[1758243142209,0.77444,117460.0,117450.0,3.5835562]
[1758243142713,0.77444,117460.0,117450.0,3.6686582]
[1758243143108,0.77444,117460.0,117450.0,3.56199367]
[1758243145809,0.77444,117460.0,117450.0,3.78342589]
[1758243149410,0.77444,117460.0,117450.0,3.69832389]
[1758243149805,0.77444,117460.0,117450.0,3.78342589]
[1758243150113,0.77444,117460.0,117450.0,3.89011745]
[1758243151919,0.02124,117470.0,117460.0,0.03625]
[1758243152116,0.02114,117470.0,117460.0,1.64991444]
[1758243152317,0.27114,117470.0,117460.0,1.64991444]
[1758243152511,1.0242,117470.0,117460.0,1.73500914]
[1758243152724,0.7742,117470.0,117460.0,1.73500914]
[1758243153621,0.7742,117470.0,117460.0,1.8417007]
[1758243153822,0.7752,117470.0,117460.0,1.8417007]
[1758243154822,0.7742,117470.0,117460.0,1.8417007]
[1758243155319,0.7742,117470.0,117460.0,1.8427007]
[1758243156319,1.81464,117480.0,117470.0,0.01325]
[1758243156525,2.5887,117480.0,117470.0,1.49848222]
[1758243157529,2.5897,117480.0,117470.0,1.49848222]
[1758243163317,2.5897,117480.0,117470.0,1.27705]
[1758243163820,2.5897,117480.0,117470.0,1.49848222]
[1758243169524,2.81113222,117480.0,117470.0,1.49848222]
[1758243169735,2.82110222,117480.0,117470.0,1.48523222]
[1758243171934,2.82110222,117480.0,117470.0,1.2638]
[1758243174733,2.82110222,117480.0,117470.0,1.48523222]
[1758243175732,2.82110222,117480.0,117470.0,1.2638]
[1758243175928,2.82110222,117480.0,117470.0,1.48523222]
[1758243176232,3.29253444,117480.0,117470.0,0.88]
[1758243176426,3.65333444,117480.0,117470.0,0.54]
[1758243180533,3.87476666,117480.0,117470.0,0.54]
[1758243180733,0.03287,117470.0,117460.0,0.00032807]
[1758243181029,0.83653444,117470.0,117460.0,0.00012807]
[1758243181236,1.08653444,117470.0,117460.0,0.00012807]
[1758243181744,1.11143611,117470.0,117460.0,0.00012807]
[1758243182040,1.33286833,117470.0,117450.0,0.0002]
[1758243182237,1.61056444,117460.0,117450.0,0.0002]
[1758243182434,0.03287,117450.0,117440.0,0.0002]
[1758243182634,0.03287,117440.0,117430.0,0.0002]
[1758243182834,1.02842222,117440.0,117430.0,0.85]
[1758243183238,1.02846222,117440.0,117430.0,0.87317]
[1758243183739,0.80703,117440.0,117430.0,0.87317]
[1758243183939,1.02846222,117440.0,117430.0,0.87317]
[1758243184240,1.02846222,117440.0,117430.0,0.87417]
[1758243186043,1.02846222,117440.0,117430.0,0.87317]
[1758243188033,0.03287,117440.0,117430.0,0.87317]
[1758243188345,1.02850222,117440.0,117430.0,0.87317]
[1758243189451,0.80707,117440.0,117430.0,0.87317]
[1758243189746,1.02850222,117440.0,117430.0,0.87317]
[1758243190645,1.02854222,117440.0,117430.0,0.87317]
[1758243193250,1.24997444,117440.0,117430.0,0.87317]
[1758243193550,3.04365444,117440.0,117430.0,0.87317]
[1758243193750,2.26941444,117440.0,117430.0,0.87317]
[1758243193952,3.04369444,117440.0,117430.0,0.87317]
[1758243195750,3.26558942,117440.0,117430.0,0.87317]
[1758243196952,2.49130942,117440.0,117430.0,0.87317]
[1758243197152,3.26558942,117440.0,117430.0,0.87317]
[1758243199150,2.49130942,117440.0,117430.0,0.87317]
[1758243199351,3.26562942,117440.0,117430.0,0.85]
[1758243202661,2.49130942,117440.0,117430.0,0.85]
[1758243202958,3.26562942,117440.0,117430.0,0.85]
[1758243203752,2.49130942,117440.0,117430.0,0.85]
[1758243203948,3.26562942,117440.0,117430.0,0.85]
[1758243205162,2.49130942,117440.0,117430.0,0.85]
[1758243205363,3.26562942,117440.0,117430.0,0.85]
[1758243208962,3.62642942,117440.0,117430.0,0.55]
[1758243210062,0.03221,117430.0,117420.0,0.0002]
[1758243210259,1.05776942,117430.0,117420.0,0.62]
[1758243211566,1.83208942,117430.0,117420.0,0.62]
[1758243211766,2.08208942,117430.0,117420.0,0.62]
[1758243214170,2.10706964,117430.0,117420.0,0.29]
[1758243214577,1.33274964,117430.0,117420.0,0.29]
[1758243214776,2.10706964,117430.0,117420.0,0.29]
[1758243215281,2.10806964,117430.0,117420.0,0.29]
[1758243216077,0.03208,117420.0,117410.0,0.0002]
[1758243216380,0.69683942,117420.0,117410.0,0.82163]
[1758243217073,1.05763942,117420.0,117410.0,0.52]
[1758243217278,1.39001913,117420.0,117410.0,0.05]
[1758243218580,1.83199942,117420.0,117400.0,1.5002]
[1758243218782,0.34234971,117410.0,117400.0,2.3302]
[1758243219082,0.34234971,117410.0,117400.0,2.33]
[1758243220485,0.34234971,117410.0,117400.0,2.331]
[1758243221280,0.34234971,117410.0,117400.0,2.332]
[1758243221787,0.35082507,117410.0,117400.0,2.332]
[1758243222580,0.37306507,117410.0,117400.0,0.85363]
[1758243226086,0.70544478,117410.0,117400.0,0.832]
[1758243226491,0.70544478,117410.0,117400.0,0.85363]
[1758243226791,0.37306507,117410.0,117400.0,0.85363]
[1758243230490,0.70544478,117410.0,117400.0,0.85363]
[1758243230792,0.37306507,117410.0,117400.0,0.85363]
[1758243233486,0.70544478,117410.0,117400.0,0.85363]
[1758243234598,0.69696942,117410.0,117400.0,0.85363]
[1758243234791,1.46139942,117410.0,117400.0,0.86754]
[1758243235196,1.12901971,117410.0,117400.0,0.86754]
[1758243235497,0.79664,117410.0,117400.0,1.19991971]
[1758243235695,1.12901971,117410.0,117400.0,1.19991971]
[1758243236789,1.12901971,117410.0,117400.0,1.56071971]
[1758243236790,0.79664,117410.0,117400.0,1.56071971]
[1758243236990,0.35461971,117410.0,117400.0,1.56071971]
[1758243237197,1.12897971,117410.0,117400.0,1.56071971]
[1758243243803,0.35461971,117410.0,117400.0,1.56071971]
[1758243244006,1.12897971,117410.0,117400.0,1.56071971]
[1758243245705,1.12897971,117410.0,117400.0,1.22834]
[1758243245907,1.12897971,117410.0,117400.0,1.56071971]
[1758243247309,0.02333807,117420.0,117410.0,0.01391]
[1758243247500,1.81751807,117420.0,117410.0,1.43892971]
[1758243247913,2.92553778,117420.0,117410.0,1.43892971]
[1758243248909,2.92553778,117420.0,117410.0,1.67892971]
[1758243249202,2.92553778,117420.0,117410.0,1.68748047]
[1758243251410,2.59315807,117420.0,117410.0,1.68748047]
[1758243251609,2.92541778,117420.0,117410.0,1.93748047]
[1758243254409,2.14989778,117420.0,117410.0,1.93748047]
[1758243254615,2.57028807,117420.0,117410.0,1.93748047]
[1758243254809,2.90266778,117420.0,117410.0,1.93748047]
[1758243256618,2.90266778,117420.0,117410.0,1.68748047]
[1758243257320,2.57028807,117420.0,117410.0,1.68748047]
[1758243257822,2.57028807,117420.0,117410.0,1.57670258]
[1758243258320,2.57008807,117420.0,117410.0,1.57670258]
[1758243273226,2.57008807,117420.0,117410.0,1.35510076]
[1758243273427,2.57008807,117420.0,117410.0,1.56815182]
[1758243276433,1.79440807,117420.0,117410.0,1.56815182]
[1758243276623,2.56908807,117420.0,117410.0,1.56815182]
[1758243278124,2.56904807,117420.0,117410.0,1.56815182]
[1758243278629,1.79440807,117420.0,117410.0,1.56815182]
[1758243278829,1.79440807,117420.0,117410.0,1.65328282]
[1758243279023,2.56920807,117420.0,117410.0,1.87488464]
[1758243279232,2.56920807,117420.0,117410.0,2.12488464]
[1758243279431,2.56920807,117420.0,117410.0,1.87488464]
[1758243279925,2.56920807,117420.0,117410.0,1.87588464]
[1758243280128,2.56920807,117420.0,117410.0,1.87688464]
[1758243282736,1.79440807,117420.0,117410.0,1.87688464]
[1758243282938,2.56916807,117420.0,117410.0,1.87688464]
[1758243290649,0.77488807,117420.0,117410.0,1.87688464]
[1758243294057,0.77480807,117420.0,117410.0,2.12688464]
[1758243295565,0.00012807,117420.0,117410.0,2.12688464]
[1758243299671,0.00012807,117420.0,117410.0,3.62688464]
[1758243299970,0.38224807,117420.0,117410.0,3.62688464]
[1758243306679,0.38224807,117420.0,117410.0,3.183681]
[1758243306882,0.38224807,117420.0,117410.0,3.62688464]
[1758243307772,0.00012807,117420.0,117410.0,3.37688464]
[1758243307978,0.0001,117430.0,117420.0,0.1204937]
[1758243308279,0.0001,117440.0,117430.0,0.1204865]
[1758243308478,0.77428,117440.0,117430.0,1.82449014]
[1758243308678,1.79402,117450.0,117440.0,0.03537]
[1758243308978,2.56828,117450.0,117440.0,3.35448284]
[1758243309879,2.57028,117450.0,117440.0,3.35448284]
[1758243310581,2.5702,117450.0,117440.0,3.26937364]
[1758243310782,2.5722,117450.0,117440.0,3.26937364]
[1758243312383,2.5722,117450.0,117440.0,3.27795706]
[1758243313585,2.5722,117450.0,117440.0,3.34558671]
[1758243315282,2.5722,117450.0,117440.0,3.43069591]
[1758243315478,2.57212,117450.0,117440.0,3.43069591]
[1758243317888,1.79792,117450.0,117440.0,3.43069591]
[1758243318182,2.57224,117450.0,117440.0,3.06989591]
[1758243318389,2.57224,117450.0,117440.0,3.79149591]
[1758243319492,2.57296,117450.0,117440.0,3.79149591]
[1758243319987,1.79792,117450.0,117440.0,4.01258551]
[1758243320188,2.57296,117450.0,117440.0,4.01258551]
[1758243323077,2.57296,117450.0,117440.0,4.11904201]
[1758243325392,1.79792,117450.0,117440.0,4.11904201]
[1758243325593,2.57256,117450.0,117440.0,4.11904201]
[1758243327379,1.79792,117450.0,117440.0,4.11904201]
[1758243327580,2.57236,117450.0,117440.0,4.45118863]
[1758243328392,2.57236,117450.0,117440.0,4.11904201]
[1758243329492,2.57236,117450.0,117440.0,4.45118863]
[1758243330692,1.79792,117450.0,117440.0,4.45118863]
[1758243330894,2.57212,117450.0,117440.0,4.70118863]
[1758243331092,2.57212,117450.0,117440.0,4.59473213]
[1758243332597,2.57012,117450.0,117440.0,4.59473213]
[1758243332784,2.57012,117450.0,117440.0,4.59573213]
[1758243333289,2.56812,117450.0,117440.0,4.59573213]
[1758243333485,2.56812,117450.0,117440.0,4.59673213]
[1758243334292,0.0001,117460.0,117450.0,0.01366]
[1758243334504,0.0001,117470.0,117460.0,0.03637]
[1758243334798,0.77408,117470.0,117460.0,2.44510665]
[1758243335399,0.77408,117470.0,117460.0,2.00655144]
[1758243336195,0.77508,117470.0,117460.0,2.00655144]
[1758243337196,0.77408,117470.0,117460.0,2.00655144]
[1758243348097,0.77408,117470.0,117460.0,2.36735144]
[1758243350802,0.77408,117470.0,117460.0,2.69949806]
[1758243356603,0.77408,117470.0,117460.0,2.69949806]
[1758243358012,0.77408,117470.0,117460.0,2.36735144]
[1758243359714,0.77408,117470.0,117460.0,2.47376003]
[1758243360809,0.77408,117470.0,117460.0,2.80590665]
[1758243363109,0.0001,117480.0,117470.0,0.1218875]
[1758243363316,0.77388,117480.0,117470.0,1.98698074]
[1758243369314,0.77388,117480.0,117470.0,3.48698074]
[1758243371317,0.77388,117480.0,117470.0,3.06974662]
[1758243373623,1.10602662,117480.0,117470.0,2.7376]
[1758243373813,1.10602662,117480.0,117470.0,3.17615521]
[1758243375226,1.10602662,117480.0,117470.0,3.06974662]
[1758243375520,1.69814324,117480.0,117470.0,3.06974662]
[1758243375725,1.36599662,117480.0,117470.0,3.06974662]
[1758243375923,1.36599662,117480.0,117470.0,3.17615521]
[1758243376328,1.36599662,117480.0,117470.0,3.06974662]
[1758243377324,1.69814324,117480.0,117470.0,2.7008]
[1758243377533,1.72035324,117480.0,117470.0,0.84]
[1758243379027,1.72035324,117480.0,117470.0,0.86319]
[1758243379537,1.72035324,117480.0,117470.0,0.84]
[1758243379743,1.49907918,117480.0,117470.0,0.84]
[1758243379943,1.85987918,117480.0,117470.0,0.84]
[1758243380245,1.85987918,117480.0,117460.0,0.36112807]
[1758243380246,2.08126877,117480.0,117460.0,0.00032807]
[1758243380542,0.83586918,117470.0,117460.0,0.57032807]
[1758243380743,1.08586918,117470.0,117460.0,0.57012807]
[1758243382533,1.08586918,117470.0,117450.0,0.0002]
[1758243382534,1.30737877,117470.0,117450.0,0.0002]
[1758243382739,1.80670877,117460.0,117450.0,0.0002]
[1758243382939,1.86093812,117460.0,117440.0,0.0002]
[1758243383140,0.58988959,117450.0,117440.0,0.9002]
[1758243383442,0.58988959,117450.0,117440.0,0.9]
[1758243383642,1.36368959,117450.0,117440.0,0.9]
[1758243384748,0.58988959,117450.0,117440.0,0.9]
[1758243385046,0.22908959,117450.0,117440.0,0.93506]
[1758243385247,0.78138,117450.0,117440.0,1.15656959]
[1758243385552,0.78138,117450.0,117440.0,0.93506]
[1758243385553,1.00288959,117450.0,117440.0,0.93506]
[1758243385852,1.00292959,117450.0,117440.0,0.93506]
[1758243386849,0.22908959,117450.0,117440.0,0.93506]
[1758243387152,1.00292959,117450.0,117440.0,0.93506]
[1758243388650,1.36372959,117450.0,117440.0,0.9]
[1758243388856,1.36376959,117450.0,117440.0,0.59]
[1758243389043,0.38198959,117450.0,117440.0,0.59]
[1758243389238,0.38198959,117450.0,117440.0,0.62506]
[1758243389546,1.15590959,117450.0,117440.0,0.62506]
[1758243389851,1.15590959,117450.0,117440.0,0.63506]
[1758243390353,1.15590959,117450.0,117440.0,1.18656959]
[1758243392340,0.38198959,117450.0,117440.0,1.18656959]
[1758243392545,1.15590959,117450.0,117440.0,1.32586]
[1758243392741,1.15590959,117450.0,117440.0,1.54736959]
[1758243392950,0.9344,117450.0,117440.0,1.54736959]
[1758243393252,0.16048,117450.0,117440.0,1.54736959]
[1758243393452,0.93444,117450.0,117440.0,1.54736959]
[1758243394546,1.15594959,117450.0,117440.0,1.32586]
[1758243395255,0.16048,117450.0,117440.0,1.32586]
[1758243395556,0.93452,117450.0,117440.0,1.54736959]
[1758243397055,0.93452,117450.0,117440.0,1.32586]
[1758243397255,0.93452,117450.0,117440.0,1.54736959]
[1758243397454,1.15602959,117450.0,117440.0,1.54736959]
[1758243398356,0.38198959,117450.0,117440.0,1.54736959]
[1758243398550,1.15598959,117450.0,117440.0,1.54736959]
[1758243401157,0.93456,117450.0,117440.0,1.54736959]
[1758243402355,2.94974959,117450.0,117440.0,1.54736959]
[1758243402561,2.72824,117450.0,117440.0,1.54736959]
[1758243402763,2.94970959,117450.0,117440.0,1.54736959]
[1758243402964,2.72816,117450.0,117440.0,1.54736959]
[1758243406564,1.95416,117450.0,117440.0,1.54736959]
[1758243406761,2.72816,117450.0,117440.0,1.54736959]
[1758243407567,2.57526,117450.0,117440.0,1.54736959]
[1758243407753,2.57526,117450.0,117440.0,2.01887918]
[1758243409568,1.80126,117450.0,117440.0,2.01887918]
[1758243409768,2.57526,117450.0,117440.0,2.01887918]
[1758243409963,2.57526,117450.0,117440.0,1.57586]
[1758243410367,2.79676959,117450.0,117440.0,1.79736959]
[1758243410568,2.57526,117450.0,117440.0,1.79736959]
[1758243411064,2.60018074,117450.0,117440.0,1.79736959]
[1758243411773,2.57526,117450.0,117440.0,1.79736959]
[1758243420780,2.57526,117450.0,117440.0,1.57586]
[1758243420976,2.57526,117450.0,117440.0,1.79736959]
[1758243421368,2.57526,117450.0,117440.0,2.01887918]
[1758243425777,2.57526,117450.0,117440.0,1.57586]
[1758243426083,2.57526,117450.0,117440.0,1.79736959]
[1758243430084,2.79676959,117450.0,117440.0,1.32586]
[1758243430276,3.04676959,117450.0,117440.0,1.30434]
[1758243430884,3.04676959,117450.0,117440.0,0.94354]
[1758243431684,2.82526,117450.0,117440.0,0.96641]
[1758243431885,3.04676959,117450.0,117440.0,0.96641]
[1758243436689,2.27276959,117450.0,117440.0,0.96641]
[1758243436889,3.04672959,117450.0,117440.0,0.96641]
[1758243437083,2.27276959,117450.0,117440.0,0.96641]
[1758243437284,3.04672959,117450.0,117440.0,0.96641]
[1758243438189,2.05126,117450.0,117440.0,0.96641]
[1758243438488,2.05126,117450.0,117440.0,1.32721]
[1758243438489,3.04672959,117450.0,117440.0,1.32721]
[1758243439790,2.27276959,117450.0,117440.0,1.32721]
[1758243439991,3.04672959,117450.0,117440.0,1.32721]
[1758243440189,2.82522,117450.0,117440.0,1.32721]
[1758243440390,3.04672959,117450.0,117440.0,1.32721]
[1758243441790,3.15753846,117450.0,117440.0,1.65952846]
[1758243445588,3.15749846,117450.0,117440.0,1.65952846]
[1758243448196,2.38357846,117450.0,117440.0,1.65952846]
[1758243448596,3.15749846,117450.0,117440.0,1.65952846]
[1758243448799,2.38357846,117450.0,117440.0,1.65952846]
[1758243449002,3.15749846,117450.0,117440.0,1.65952846]
[1758243449298,2.38357846,117450.0,117440.0,1.65952846]
[1758243449498,2.82518,117450.0,117440.0,1.65952846]
[1758243449700,3.15749846,117450.0,117440.0,1.65952846]